fUST/lending_fUST_20250522
["ID","MTS","AMOUNT","RATE_DAILY","PERIOD"]
[361886522,1747867853191,-160.998438,0.00023973,2]
[361886523,1747867853201,-814.47,0.00024,2]
[361886524,1747867853211,-814.47,0.00024,2]
[361886525,1747867853221,-814.47,0.00024,2]
[361886526,1747867853230,-814.47,0.00024,2]
[361886527,1747867853240,-814.63792702,0.00024,2]
[361886528,1747867853250,-221.52,0.00024001,2]
[361886529,1747867853262,-154.57,0.00024001,2]
[361886530,1747867853272,-215.1171395,0.00024001,2]
[361886531,1747867853281,-511.63072618,0.00024001,2]
[361886532,1747867853292,-370.0,0.00024001,2]
[361886533,1747867853302,-274.23529294,0.00024001,2]
[361886534,1747867853311,-430.0,0.00024001,2]
[361886535,1747867853321,-470.0,0.00024001,2]
[361886536,1747867853330,-430.0,0.00024001,2]
[361886537,1747867853342,-430.0,0.00024001,2]
[361886538,1747867853353,-370.0,0.00024001,2]
[361886539,1747867853362,-300.0,0.00024001,2]
[361886540,1747867853372,-430.0,0.00024001,2]
[361886541,1747867853382,-430.0,0.00024001,2]
[361886542,1747867853391,-470.0,0.00024001,2]
[361886543,1747867853401,-430.0,0.00024001,2]
[361886544,1747867853411,-430.0,0.00024001,2]
[361886545,1747867853421,-430.0,0.00024001,2]
[361886546,1747867853431,-430.0,0.00024001,2]
[361886547,1747867853441,-430.0,0.00024001,2]
[361886548,1747867853451,-430.0,0.00024001,2]
[361886549,1747867853461,-470.0,0.00024001,2]
[361886550,1747867853471,-430.0,0.00024001,2]
[361886551,1747867853480,-430.0,0.00024001,2]
[361886552,1747867853490,-430.0,0.00024001,2]
[361886553,1747867853500,-1327.49393494,0.00024008,2]
[361886554,1747867853510,-589.71121358,0.00024009,2]
[361886555,1747867853520,-151.0,0.000241,9]
[361886556,1747867853531,-151.0,0.000241,6]
[361886557,1747867853540,-240.57673684,0.00024107,10]
[361886558,1747867853550,-430.0,0.00024109,2]
[361886559,1747867853559,-430.0,0.00024109,2]
[361886560,1747867853569,-151.0,0.00024141,7]
[361886561,1747867853579,-157.059143,0.00024141,7]
[361886562,1747867853588,-1385.61,0.00024153,2]
[361886563,1747867853599,-826.32,0.00024153,2]
[361886564,1747867853608,-430.0,0.00024153,2]
[361886565,1747867853618,-430.0,0.00024153,2]
[361886566,1747867853627,-430.0,0.00024153,2]
[361886567,1747867853637,-634.64,0.00024153,2]
[361886568,1747867853646,-430.0,0.00024153,2]
[361886569,1747867853656,-430.0,0.00024153,2]
[361886570,1747867853665,-257.35,0.00024153,2]
[361886571,1747867853675,-335.38,0.00024153,2]
[361886572,1747867853686,-430.0,0.00024153,2]
[361886573,1747867853696,-430.0,0.00024153,2]
[361886574,1747867853706,-430.0,0.00024153,2]
[361886575,1747867853716,-430.0,0.00024153,2]
[361886576,1747867853726,-539.59,0.00024155,2]
[361886577,1747867853735,-430.0,0.00024155,2]
[361886578,1747867853745,-1054.72,0.00024155,2]
[361886579,1747867853754,-446.17,0.00024155,2]
[361886580,1747867853765,-430.0,0.00024156,2]
[361886581,1747867853775,-430.0,0.00024156,2]
[361886582,1747867853785,-430.0,0.00024156,2]
[361886583,1747867853795,-430.0,0.00024156,2]
[361886584,1747867853805,-913.54,0.00024156,2]
[361886585,1747867853815,-430.0,0.00024156,2]
[361886586,1747867853826,-430.0,0.00024157,2]
[361886587,1747867853836,-430.0,0.00024157,2]
[361886588,1747867853846,-464.58698583,0.00024157,2]
[361886589,1747867853856,-430.0,0.00024157,2]
[361886590,1747867853866,-430.0,0.00024157,2]
[361886591,1747867853876,-514.86,0.00024157,2]
[361886592,1747867853885,-333.65757981,0.00024157,2]
[361886593,1747867853895,-450.54,0.00024157,2]
[361886594,1747867853904,-151.0,0.00024158,7]
[361886595,1747867853914,-151.0,0.00024158,7]
[361886596,1747867853924,-151.0,0.00024158,7]
[361886597,1747867853934,-151.0,0.00024158,7]
[361886598,1747867853943,-151.0,0.00024158,7]
[361886599,1747867853953,-151.0,0.00024158,7]
[361886600,1747867853962,-151.0,0.00024158,7]
[361886601,1747867853972,-1283.211188,0.00024158,7]
[361886602,1747867853982,-1283.211188,0.00024158,7]
[361886603,1747867853992,-190.102281,0.00024158,7]
[361886604,1747867854002,-242.99518,0.00024158,7]
[361886605,1747867854013,-190.102281,0.00024158,7]
[361886606,1747867854023,-242.99518,0.00024158,7]
[361886607,1747867854033,-589.71121358,0.00024165,2]
[361886608,1747867854043,-151.0,0.00024236,2]
[361886609,1747867854053,-153.53485987,0.00024236,2]
[361886610,1747867854063,-152.01447341,0.00024236,2]
[361886611,1747867854072,-207.4,0.00024236,2]
[361886612,1747867854082,-151.0,0.00024237,7]
[361886613,1747867854092,-240.57673684,0.00024245,10]
[361886614,1747867854101,-600.0,0.0002425,2]
[361886615,1747867854112,-300.0,0.00024275,2]
[361886616,1747867854122,-530.0,0.00024275,2]
[361886617,1747867854133,-430.0,0.00024275,2]
[361886618,1747867854143,-430.0,0.00024275,2]
[361886619,1747867854153,-430.0,0.00024275,2]
[361886620,1747867854163,-430.0,0.00024275,2]
[361886621,1747867854270,-430.0,0.00024275,2]
[361886622,1747867854280,-430.0,0.00024275,2]
[361886623,1747867854290,-573.62,0.00024275,2]
[361886624,1747867854300,-430.0,0.00024275,2]
[361886625,1747867854311,-430.0,0.00024275,2]
[361886626,1747867854321,-430.0,0.00024275,2]
[361886627,1747867854330,-4257.01522563,0.000243,2]
[361886628,1747867854340,-306.0,0.00024301,2]
[361886629,1747867854350,-240.57673684,0.00024383,11]
[361886630,1747867854359,-430.0,0.00024383,2]
[361886631,1747867854368,-430.0,0.00024383,2]
[361886632,1747867854378,-151.0,0.000244,10]
[361886633,1747867854388,-151.0,0.000244,6]
[361886634,1747867854400,-1385.61,0.00024427,2]
[361886635,1747867854409,-826.32,0.00024427,2]
[361886636,1747867854419,-430.0,0.00024427,2]
[361886637,1747867854430,-430.0,0.00024427,2]
[361886638,1747867854440,-430.0,0.00024427,2]
[361886639,1747867854450,-634.64,0.00024427,2]
[361886640,1747867854459,-430.0,0.00024427,2]
[361886641,1747867854469,-430.0,0.00024427,2]
[361886642,1747867854479,-430.0,0.00024427,2]
[361886643,1747867854488,-430.0,0.00024427,2]
[361886644,1747867854498,-430.0,0.00024427,2]
[361886645,1747867854508,-430.0,0.00024427,2]
[361886646,1747867854517,-430.0,0.00024429,2]
[361886647,1747867854528,-1054.72,0.00024429,2]
[361886648,1747867854537,-430.0,0.0002443,2]
[361886649,1747867854547,-430.0,0.0002443,2]
[361886650,1747867854558,-430.0,0.0002443,2]
[361886651,1747867854568,-430.0,0.0002443,2]
[361886652,1747867854577,-913.54,0.0002443,2]
[361886653,1747867854587,-430.0,0.0002443,2]
[361886654,1747867854596,-430.0,0.00024431,2]
[361886655,1747867854606,-430.0,0.00024431,2]
[361886656,1747867854616,-430.0,0.00024431,2]
[361886657,1747867854626,-430.0,0.00024431,2]
[361886658,1747867854636,-514.86,0.00024431,2]
[361886659,1747867854646,-212.081506,0.00024433,7]
[361886660,1747867854656,-212.081506,0.00024433,7]
[361886661,1747867854665,-794.204593,0.00024433,7]
[361886662,1747867854675,-794.204593,0.00024433,7]
[361886663,1747867854685,-151.0,0.00024433,7]
[361886664,1747867854694,-519.062432,0.00024433,7]
[361886665,1747867854704,-519.062432,0.00024433,7]
[361886666,1747867854713,-151.0,0.00024433,7]
[361886667,1747867854723,-151.0,0.00024433,7]
[361886668,1747867854733,-151.0,0.00024433,7]
[361886669,1747867854742,-589.71121358,0.00024488,2]
[361886670,1747867854752,-240.57673684,0.00024521,11]
[361886671,1747867854762,-300.0,0.00024549,2]
[361886672,1747867854771,-430.0,0.00024549,2]
[361886673,1747867854781,-546.28,0.00024549,2]
[361886674,1747867854790,-430.0,0.00024549,2]
[361886675,1747867854802,-430.0,0.00024549,2]
[361886676,1747867854812,-430.0,0.00024549,2]
[361886677,1747867854822,-430.0,0.00024549,2]
[361886678,1747867854831,-20022.38105813,0.000246,2]
[361886679,1747867854841,-200.0,0.00024625,7]
[361886680,1747867854850,-82.79473216,0.00024625,7]
[361886681,1747867855015,-117.96427051,0.00024625,7]
[361886682,1747867855025,-430.0,0.00024657,2]
[361886683,1747867855034,-63.52358549,0.00024657,2]
[361886684,1747867855154,-430.0,0.00021917,2]
[361886685,1747867855164,-430.0,0.00022465,2]
[361886686,1747867855173,-144.25773254,0.00024657,2]
[361886687,1747867855182,-430.0,0.00024657,2]
[361886688,1747867855192,-430.0,0.00024657,2]
[361886689,1747867855201,-150.0,0.00024658,2]
[361886690,1747867855210,-151.0,0.00024658,7]
[361886691,1747867855220,-151.0,0.00024658,7]
[361886692,1747867855229,-182.86741,0.00024658,7]
[361886693,1747867855238,-101.88291075,0.00024658,2]
[361886694,1747867855250,-398.11708925,0.00024658,2]
[361886695,1747867855259,-220.86683454,0.00024658,2]
[361886696,1747867855271,-500.0,0.00024658,2]
[361886697,1747867855280,-500.0,0.00024658,2]
[361886698,1747867855289,-500.0,0.00024658,2]
[361886699,1747867855302,-624.01814311,0.00024658,2]
[361886700,1747867855311,-500.0,0.00024658,2]
[361886701,1747867855321,-500.0,0.00024658,2]
[361886702,1747867855330,-500.0,0.00024658,2]
[361886703,1747867855341,-500.0,0.00024658,2]
[361886704,1747867855350,-500.0,0.00024658,2]
[361886705,1747867855359,-500.0,0.00024658,2]
[361886706,1747867855369,-500.0,0.00024658,2]
[361886707,1747867855379,-500.0,0.00024658,2]
[361886708,1747867855388,-650.0,0.00024658,2]
[361886709,1747867855398,-151.851706,0.00024658,7]
[361886710,1747867855408,-151.0,0.00024658,7]
[361886711,1747867855417,-151.0,0.00024658,2]
[361886712,1747867855427,-160.83129,0.00024658,7]
[361886713,1747867855436,-151.0,0.00024658,7]
[361886714,1747867855447,-248.336333,0.00024658,7]
[361886715,1747867855457,-152.506462,0.00024658,7]
[361886716,1747867855466,-1283.211188,0.00024658,7]
[361886717,1747867855476,-1283.211192,0.00024658,7]
[361886718,1747867855486,-190.102281,0.00024658,7]
[361886719,1747867855585,-242.99518,0.00024658,7]
[361886720,1747867855598,-190.102283,0.00024658,7]
[361886721,1747867855609,-242.995178,0.00024658,7]
[361886722,1747867855618,-240.57673684,0.00024659,11]
[361886723,1747867855628,-37561.92076076,0.0002466,7]
[361886724,1747867855638,-37561.92076076,0.0002466,7]
[361886725,1747867855648,-151.0,0.0002466,7]
[361886726,1747867855658,-151.0,0.0002466,7]
[361886727,1747867855668,-151.0,0.0002466,7]
[361886728,1747867855678,-151.0,0.0002466,2]
[361886729,1747867855688,-151.0,0.0002466,7]
[361886730,1747867855698,-151.0,0.0002466,7]
[361886731,1747867855709,-151.0,0.0002466,7]
[361886732,1747867855719,-151.0,0.0002466,7]
[361886733,1747867855728,-151.0,0.0002466,7]
[361886734,1747867855738,-151.0,0.0002466,7]
[361886735,1747867855748,-212.081506,0.0002466,7]
[361886736,1747867855757,-212.081506,0.0002466,7]
[361886737,1747867855767,-794.204593,0.0002466,7]
[361886738,1747867855777,-794.204593,0.0002466,7]
[361886739,1747867855787,-151.0,0.0002466,7]
[361886740,1747867855798,-519.062432,0.0002466,7]
[361886741,1747867855808,-519.062432,0.0002466,7]
[361886742,1747867855818,-151.0,0.0002466,7]
[361886743,1747867855829,-151.0,0.0002466,7]
[361886744,1747867855838,-151.0,0.0002466,7]
[361886745,1747867855848,-151.0,0.0002466,7]
[361886746,1747867855858,-151.0,0.000247,8]
[361886747,1747867855867,-151.0,0.000247,7]
[361886748,1747867855877,-160.0,0.000247,3]
[361886749,1747867855887,-826.32,0.00024701,2]
[361886750,1747867855896,-498.96,0.00024701,2]
[361886751,1747867855906,-430.0,0.00024701,2]
[361886752,1747867855916,-430.0,0.00024701,2]
[361886753,1747867855925,-634.64,0.00024701,2]
[361886754,1747867855935,-478.34,0.00024701,2]
[361886755,1747867855945,-430.0,0.00024701,2]
[361886756,1747867855955,-430.0,0.00024701,2]
[361886757,1747867855965,-518.9,0.00024701,2]
[361886758,1747867855975,-338.11,0.00024701,2]
[361886759,1747867855984,-430.0,0.00024701,2]
[361886760,1747867855994,-430.0,0.00024703,2]
[361886761,1747867856004,-1054.72,0.00024703,2]
[361886762,1747867856013,-430.0,0.00024704,2]
[361886763,1747867856023,-430.0,0.00024704,2]
[361886764,1747867856033,-430.0,0.00024704,2]
[361886765,1747867856043,-430.0,0.00024704,2]
[361886766,1747867856054,-913.54,0.00024704,2]
[361886767,1747867856063,-430.0,0.00024704,2]
[361886768,1747867856073,-430.0,0.00024705,2]
[361886769,1747867856083,-430.0,0.00024705,2]
[361886770,1747867856092,-430.0,0.00024705,2]
[361886771,1747867856102,-430.0,0.00024705,2]
[361886772,1747867856112,-514.86,0.00024705,2]
[361886773,1747867856121,-200.0,0.00024728,2]
[361886774,1747867856131,-240.57673684,0.00024797,11]
[361886775,1747867856141,-1200.0,0.00024798,2]
[361886776,1747867856151,-166.30644302,0.000248,2]
[361886777,1747867856160,-5066.194246,0.000248,2]
[361886778,1747867856170,-151.0,0.00024823,7]
[361886779,1747867856179,-430.0,0.00024823,2]
[361886780,1747867856189,-154.22928254,0.00024877,2]
[361886781,1747867856199,-253.5,0.0002489,120]
[361886782,1747867856209,-500.0,0.0002489,120]
[361886783,1747867856219,-575.15,0.0002489,120]
[361886784,1747867856228,-151.0,0.0002489,7]
[361886785,1747867856238,-151.0,0.0002489,7]
[361886786,1747867856248,-151.0,0.0002489,2]
[361886787,1747867856257,-151.0,0.0002489,7]
[361886788,1747867856270,-151.0,0.0002489,7]
[361886789,1747867856279,-151.0,0.0002489,7]
[361886790,1747867856289,-151.0,0.0002489,7]
[361886791,1747867856299,-151.0,0.0002489,7]
[361886792,1747867856309,-151.0,0.0002489,7]
[361886793,1747867856318,-212.081506,0.0002489,7]
[361886794,1747867856328,-212.081506,0.0002489,7]
[361886795,1747867856339,-794.204593,0.0002489,7]
[361886796,1747867856349,-794.204593,0.0002489,7]
[361886797,1747867856358,-151.0,0.0002489,7]
[361886798,1747867856368,-519.062432,0.0002489,7]
[361886799,1747867856378,-519.062432,0.0002489,7]
[361886800,1747867856387,-151.0,0.0002489,7]
[361886801,1747867856397,-151.0,0.0002489,7]
[361886802,1747867856408,-276.281221,0.0002489,7]
[361886803,1747867856418,-151.0,0.000249,7]
[361886804,1747867856428,-151.0,0.000249,7]
[361886805,1747867856438,-151.0,0.000249,7]
[361886806,1747867856447,-151.0,0.000249,7]
[361886807,1747867856457,-163.081142,0.000249,7]
[361886808,1747867856467,-151.0,0.000249,2]
[361886809,1747867856477,-151.0,0.000249,7]
[361886810,1747867856486,-151.0,0.000249,7]
[361886811,1747867856495,-151.0,0.000249,7]
[361886812,1747867856505,-151.0,0.000249,7]
[361886813,1747867856514,-151.0,0.000249,7]
[361886814,1747867856524,-151.0,0.000249,7]
[361886815,1747867856534,-212.081506,0.000249,7]
[361886816,1747867856544,-212.081506,0.000249,7]
[361886817,1747867856554,-794.204593,0.000249,7]
[361886818,1747867856564,-794.204593,0.000249,7]
[361886819,1747867856573,-151.0,0.000249,7]
[361886820,1747867856582,-519.062432,0.000249,7]
[361886821,1747867856592,-519.062432,0.000249,7]
[361886822,1747867856601,-151.0,0.000249,7]
[361886823,1747867856610,-151.0,0.000249,7]
[361886824,1747867856620,-430.0,0.00024931,2]
[361886825,1747867856630,-430.0,0.00024931,2]
[361886826,1747867856640,-240.57673684,0.00024934,12]
[361886827,1747867856650,-1549.0,0.0002497,120]
[361886828,1747867856659,-826.32,0.00024975,2]
[361886829,1747867856669,-528.01,0.00024975,2]
[361886830,1747867856679,-430.0,0.00024975,2]
[361886831,1747867856688,-634.64,0.00024975,2]
[361886832,1747867856698,-306.94,0.00024975,2]
[361886833,1747867856707,-430.0,0.00024975,2]
[361886834,1747867856717,-430.0,0.00024975,2]
[361886835,1747867856727,-430.0,0.00024977,2]
[361886836,1747867856736,-1054.72,0.00024977,2]
[361886837,1747867856746,-430.0,0.00024978,2]
[361886838,1747867856755,-430.0,0.00024978,2]
[361886839,1747867856765,-430.0,0.00024978,2]
[361886840,1747867856774,-430.0,0.00024978,2]
[361886841,1747867856783,-913.54,0.00024978,2]
[361886842,1747867856793,-430.0,0.00024978,2]
[361886843,1747867856803,-226.06,0.00024979,2]
[361886844,1747867856812,-430.0,0.00024979,2]
[361886845,1747867856824,-431.54,0.00024979,2]
[361886846,1747867856834,-430.0,0.00024979,2]
[361886847,1747867856843,-514.86,0.00024979,2]
[361886848,1747867856852,-1549.0,0.0002498,120]
[361886849,1747867856862,-151.0,0.0002498,7]
[361886850,1747867856966,-151.0,0.0002498,2]
[361886851,1747867856975,-151.0,0.0002498,7]
[361886852,1747867856986,-151.0,0.0002498,7]
[361886853,1747867856995,-151.0,0.0002498,7]
[361886854,1747867857006,-151.0,0.0002498,7]
[361886855,1747867857016,-151.0,0.0002498,7]
[361886856,1747867857026,-151.0,0.0002498,7]
[361886857,1747867857035,-212.081506,0.0002498,7]
[361886858,1747867857045,-212.081506,0.0002498,7]
[361886859,1747867857054,-794.204593,0.0002498,7]
[361886860,1747867857064,-794.204593,0.0002498,7]
[361886861,1747867857073,-519.062432,0.0002498,7]
[361886862,1747867857083,-519.062432,0.0002498,7]
[361886863,1747867857093,-151.0,0.0002498,7]
[361886864,1747867857102,-151.0,0.0002498,7]
[361886865,1747867857112,-151.0,0.00024988,7]
[361886866,1747867857121,-151.0,0.00024988,2]
[361886867,1747867857131,-151.0,0.00024988,7]
[361886868,1747867857140,-151.0,0.00024988,7]
[361886869,1747867857150,-151.0,0.00024988,7]
[361886870,1747867857160,-245.643742,0.00024988,7]
[361886871,1747867857169,-151.0,0.00024988,7]
[361886872,1747867857179,-151.0,0.00024989,7]
[361886873,1747867857188,-151.0,0.00024989,7]
[361886874,1747867857197,-151.0,0.00024989,7]
[361886875,1747867857207,-340.120764,0.00024989,7]
[361886876,1747867857216,-340.120764,0.00024989,7]
[361886877,1747867857226,-151.0,0.00024989,7]
[361886878,1747867857235,-1549.0,0.0002499,120]
[361886879,1747867857245,-151.0,0.0002499,7]
[361886880,1747867857255,-151.0,0.0002499,7]
[361886881,1747867857268,-151.0,0.0002499,7]
[361886882,1747867857278,-151.0,0.0002499,7]
[361886883,1747867857288,-340.120764,0.0002499,7]
[361886884,1747867857297,-340.120764,0.0002499,7]
[361886885,1747867857307,-219.33418,0.0002499,7]
[361886886,1747867857318,-219.33418,0.0002499,7]
[361886887,1747867857327,-213.715885,0.0002499,7]
[361886888,1747867857337,-212.081506,0.0002499,7]
[361886889,1747867857348,-212.081508,0.0002499,7]
[361886890,1747867857359,-794.204593,0.0002499,7]
[361886891,1747867857368,-794.204589,0.0002499,7]
[361886892,1747867857378,-519.062432,0.0002499,7]
[361886893,1747867857387,-519.062429,0.0002499,7]
[361886894,1747867857397,-151.0,0.0002499,7]
[361886895,1747867857407,-151.0,0.0002499,7]
[361886896,1747867857416,-160.0,0.00025,3]
[361886897,1747867857425,-10039.33243654,0.00025,2]
[361886898,1747867857439,-4005.4771906,0.00025,2]
[361886899,1747867857466,-1341.02937639,0.00022739,3]
[361886900,1747867857477,-1000.9806409,0.00022739,3]
[361886901,1747867857489,-416.81721438,0.00022739,3]
[361886902,1747867857570,-18.31165258,0.00022739,3]
[361886906,1747868077332,1219.0,0.0002,120]
[361886913,1747868288058,159.919409,0.00013699,2]
[361886923,1747868737097,-5000.0,0.00020842,2]
[361886924,1747868737131,-1200.0,0.00021914,2]
[361886925,1747868737157,-300.0,0.00021915,2]
[361886926,1747868737178,-157.85,0.00021916,2]
[361886927,1747868737199,-280.845,0.00021916,2]
[361886928,1747868737221,-177.55261086,0.00021916,2]
[361886929,1747868737248,-500.0,0.00021916,2]
[361886930,1747868737276,-500.0,0.00021916,2]
[361886931,1747868737302,-500.0,0.00021916,2]
[361886932,1747868737332,-196.08624562,0.00021916,2]
[361886933,1747868737357,-500.0,0.00021916,2]
[361886934,1747868737382,-169.05361273,0.00021916,2]
[361886935,1747868756101,-2271.85403266,0.00020634,2]
[361886939,1747868828106,-1435.30718336,0.00020634,2]
[361886941,1747868848088,-900.02238769,0.00020634,2]
[361886949,1747868947308,-1405.75900033,0.00019618,2]
[361886950,1747868947332,-323.02894784,0.00019816,2]
[361886951,1747868947355,-112.19350834,0.00020821,2]
[361886952,1747868949112,-47.80649166,0.00020821,2]
[361886953,1747868949139,-121.84012199,0.000219,6]
[361886955,1747868966135,-685.28240137,0.000219,6]
[361886956,1747868966160,-258.79387733,0.00021915,2]
[361886957,1747868971145,-41.20612267,0.00021915,2]
[361886958,1747868971170,-259.58620828,0.00021916,2]
[361886959,1747868971194,-214.29331344,0.00021916,2]
[361886960,1747868971214,-491.40846344,0.00021916,2]
[361886965,1747869032128,-480.0,0.00021915,2]
[361886966,1747869032137,-2212.13617536,0.00021916,2]
[361886967,1747869032149,-1343.44500342,0.00021916,2]
[361886968,1747869032161,-953.01035778,0.00021916,2]
[361886969,1747869032171,-300.0,0.00021916,2]
[361886970,1747869032180,-430.0,0.00021917,2]
[361886971,1747869032190,-430.0,0.00021917,2]
[361886973,1747869032200,-430.0,0.00021917,2]
[361886975,1747869032209,-430.0,0.00021917,2]
[361886977,1747869032219,-281.56377815,0.00021917,2]
[361887053,1747869037936,-148.43622185,0.00021917,2]
[361887054,1747869037947,-11.04235408,0.00021917,2]
[361887055,1747869038033,-418.95764592,0.00021917,2]
[361887056,1747869038042,-205.2472702,0.00021917,2]
[361887087,1747869043692,-244.7527298,0.00021917,2]
[361887088,1747869043702,-294.19709564,0.00021917,2]
[361887089,1747869043716,-205.80290436,0.00021917,2]
[361887090,1747869043726,-430.0,0.00021917,2]
[361887091,1747869043736,-430.0,0.00021917,2]
[361887092,1747869043746,-430.0,0.00021917,2]
[361887093,1747869043755,-450.0,0.00021917,2]
[361887094,1747869043765,-430.0,0.00021917,2]
[361887095,1747869043774,-1145.27854563,0.00021917,2]
[361887096,1747869043784,-430.0,0.00021917,2]
[361887097,1747869043793,-430.0,0.00021917,2]
[361887098,1747869043803,-430.0,0.00021917,2]
[361887099,1747869043814,-217.01001106,0.00021917,2]
[361887100,1747869043869,-282.98998894,0.00021917,2]
[361887102,1747869043879,-119.43823691,0.00021917,2]
[361887109,1747869046114,-310.56176309,0.00021917,2]
[361887110,1747869046125,-430.0,0.00021917,2]
[361887111,1747869046137,-450.0,0.00021917,2]
[361887112,1747869046147,-560.41238734,0.00021917,2]
[361887113,1747869046157,-450.0,0.00021917,2]
[361887114,1747869046169,-430.0,0.00021917,2]
[361887115,1747869046179,-450.0,0.00021917,2]
[361887116,1747869046190,-452.2361337,0.00021917,2]
[361887117,1747869046200,-430.0,0.00021917,2]
[361887118,1747869046210,-354.95157572,0.00021917,2]
[361887119,1747869046220,-451.65785001,0.00021917,2]
[361887120,1747869046230,-430.0,0.00021917,2]
[361887121,1747869046240,-430.0,0.00021917,2]
[361887122,1747869046251,-430.0,0.00021917,2]
[361887123,1747869046260,-673.6,0.00021917,2]
[361887124,1747869046270,-206.79581561,0.00021917,2]
[361887125,1747869046281,-400.0,0.00021917,2]
[361887126,1747869046291,-922.75,0.00021917,2]
[361887127,1747869046301,-451.63122334,0.00021917,2]
[361887128,1747869046311,-218.92859371,0.00021917,2]
[361887129,1747869046321,-457.46846965,0.00021917,2]
[361887130,1747869046332,-430.0,0.00021917,2]
[361887131,1747869046343,-430.0,0.00021917,2]
[361887132,1747869046354,-457.23559098,0.00021917,2]
[361887133,1747869046363,-430.0,0.00021917,2]
[361887134,1747869046374,-437.51,0.00021917,2]
[361887135,1747869046384,-430.0,0.00021917,2]
[361887136,1747869046394,-430.0,0.00021917,2]
[361887137,1747869046405,-370.0,0.00021917,2]
[361887138,1747869046416,-430.0,0.00021917,2]
[361887139,1747869046426,-430.0,0.00021917,2]
[361887140,1747869046436,-430.0,0.00021917,2]
[361887141,1747869046446,-430.0,0.00021917,2]
[361887142,1747869046456,-430.0,0.00021917,2]
[361887143,1747869046467,-430.0,0.00021917,2]
[361887144,1747869046478,-430.0,0.00021917,2]
[361887145,1747869046488,-430.0,0.00021917,2]
[361887146,1747869046504,-947.37,0.00021917,2]
[361887147,1747869046516,-430.0,0.00021917,2]
[361887148,1747869046526,-430.0,0.00021917,2]
[361887149,1747869046536,-430.0,0.00021917,2]
[361887150,1747869046546,-430.0,0.00021917,2]
[361887151,1747869046557,-1476.09,0.00021917,2]
[361887152,1747869046567,-430.0,0.00021917,2]
[361887153,1747869046577,-430.0,0.00021917,2]
[361887154,1747869046587,-430.0,0.00021917,2]
[361887155,1747869046596,-845.81,0.00021917,2]
[361887156,1747869046606,-430.0,0.00021917,2]
[361887157,1747869046616,-430.0,0.00021917,2]
[361887158,1747869046626,-430.0,0.00021917,2]
[361887159,1747869046640,-430.0,0.00021917,2]
[361887160,1747869046650,-430.0,0.00021917,2]
[361887161,1747869046660,-430.0,0.00021917,2]
[361887162,1747869046671,-430.0,0.00021917,2]
[361887163,1747869046683,-230.29724604,0.00021917,2]
[361887164,1747869046692,-430.0,0.00021917,2]
[361887165,1747869046704,-430.0,0.00021917,2]
[361887166,1747869046716,-430.0,0.00021917,2]
[361887167,1747869046725,-430.0,0.00021917,2]
[361887168,1747869046735,-430.0,0.00021917,2]
[361887169,1747869046744,-430.0,0.00021917,2]
[361887170,1747869046755,-430.0,0.00021917,2]